[Event "1000GM NY Winter IM-C 2024"]
[Site "New York"]
[Date "2024.01.15"]
[Round "8.1"]
[White "Rohde, Michael"]
[Black "Goktepe, Derin"]
[Result "1-0"]
[ECO "E54"]
[WhiteElo "2333"]
[BlackElo "2187"]
[Annotator "ChessBase"]
[PlyCount "73"]
[EventDate "2024.01.10"]
[EventType "swiss"]
[EventCountry "USA"]
[SourceTitle "playchess.com"]
[Source "ChessBase"]
[SourceQuality "1"]
[TimeControl "5400+30"]

1. Nf3 {[%emt 0:06:14]} Nf6 {[%emt 0:00:13]} 2. c4 {[%emt 0:00:05]} e6 {[%emt 0:00:21]} 3. Nc3 {[%emt 0:00:10]} d5 {[%emt 0:00:26]} 4. d4 {[%emt 0:00:05]} Bb4 {[%emt 0:00:38]} 5. e3 {[%emt 0:00:55]} O-O {[%emt 0:01:17]} 6. Bd3 {[%emt 0:00:29]} dxc4 {[%emt 0:02:39]} 7. Bxc4 {[%emt 0:00:10]} c5 {[%emt 0:02:41]} 8. O-O {[%emt 0:02:11]} cxd4 {[%emt 0:02:28]} 9. exd4 {[%emt 0:00:54]} b6 {[%emt 0:02:17]} 10. Ne5 {[%emt 0:06:30]} Bb7 {[%emt 0:04:00]} 11. Bg5 {[%emt 0:00:28]} Nbd7 {[%emt 0:08:49]} 12. Qe2 {[%emt 0:38:42]} Be7 {[%emt 0:10:55]} 13. Rad1 {[%emt 0:03:28]} h6 {[%emt 0:06:27]} 14. Bh4 {[%emt 0:04:20]} Ne4 {[%emt 0:12:56]} 15. Nxe4 {[%emt 0:09:55]} Bxh4 {[%emt 0:00:10]} 16. Nd6 {[%emt 0:05:21]} Bd5 {[%emt 0:01:32]} 17. Bxd5 {[%emt 0:01:42]} exd5 {[%emt 0:00:06]} 18. Qf3 {[%emt 0:02:10]} Qc7 {[%emt 0:03:05]} 19. Nf5 {[%emt 0:03:13]} Bf6 {[%emt 0:04:02]} 20. Nxh6+ {[%emt 0:02:31]} Kh7 {[%emt 0:00:54]} 21. Qd3+ {[%emt 0:07:14]} g6 {[%emt 0:00:45]} 22. Nhxf7 {[%emt 0:03:12]} Nxe5 {[%emt 0:01:43]} 23. Nxe5 {[%emt 0:00:59]} Bxe5 {[%emt 0:00:50]} 24. dxe5 {[%emt 0:00:05]} Qxe5 {[%emt 0:00:32]} 25. Qxd5 {[%emt 0:00:32]} Qxb2 {[%emt 0:00:27]} 26. Qb7+ {[%emt 0:00:19]} Kh8 {[%emt 0:00:27]} 27. Rd3 {[%emt 0:00:37]} Qg7 {[%emt 0:00:25]} 28. Rd7 {[%emt 0:00:42]} Qf6 {[%emt 0:00:42]} 29. Qc7 {[%emt 0:00:37]} Rae8 {[%emt 0:01:12]} 30. Qg3 {[%emt 0:00:33]} Rf7 {[%emt 0:03:07]} 31. Rd6 {[%emt 0:00:13]} Re6 {[%emt 0:00:23]} 32. Qh3+ {[%emt 0:00:11]} Kg8 {[%emt 0:00:16]} 33. Qxe6 {[%emt 0:00:14]} Qf4 {[%emt 0:00:11]} 34. Qxg6+ {[%emt 0:00:21]} Kf8 {[%emt 0:00:07]} 35. Rd8+ {[%emt 0:00:20]} Ke7 {[%emt 0:00:04]} 36. Rd3 {[%emt 0:00:12]} Rf6 {[%emt 0:00:12]} 37. Re1+ {[%emt 0:00:21]} 1-0

[Event "1000GM NY Winter IM-C 2024"]
[Site "New York"]
[Date "2024.01.15"]
[Round "8.2"]
[White "Yoo, Eugene"]
[Black "Almeida Saenz, Alfonso"]
[Result "1/2-1/2"]
[ECO "A28"]
[WhiteElo "2168"]
[BlackElo "2222"]
[Annotator "NA"]
[PlyCount "117"]
[EventDate "2024.01.10"]
[EventType "swiss"]
[EventCountry "USA"]
[SourceTitle "playchess.com"]
[Source "ChessBase"]
[SourceQuality "1"]
[TimeControl "5400+30"]

1. c4 {[%emt 0:00:01]} e5 {[%emt 0:08:10]} 2. Nc3 {[%emt 0:01:11]} Nf6 {[%emt 0:00:13]} 3. Nf3 {[%emt 0:00:46]} Nc6 {[%emt 0:01:19]} 4. e3 {[%emt 0:00:26]} Bb4 {[%emt 0:00:30]} 5. Qc2 {[%emt 0:00:33]} O-O {[%emt 0:00:16]} 6. Nd5 {[%emt 0:00:31]} Re8 {[%emt 0:03:05]} 7. Qf5 {[%emt 0:08:33]} d6 {[%emt 0:03:41]} 8. Nxf6+ {[%emt 0:00:12]} Qxf6 {[%emt 0:00:01]} 9. Qxf6 {[%emt 0:00:01]} gxf6 {[%emt 0:00:01]} 10. a3 {[%emt 0:04:12]} Ba5 {[%emt 0:00:00]} 11. b4 {[%emt 0:00:03]} Bb6 {[%emt 0:00:07]} 12. Bb2 {[%emt 0:00:15]} a5 {[%emt 0:00:07]} 13. b5 {[%emt 0:00:41]} Ne7 {[%emt 0:00:28]} 14. d4 {[%emt 0:03:47]} a4 {[%emt 0:00:14]} 15. Rc1 {[%emt 0:09:14]} c5 {[%emt 0:00:27]} 16. d5 {[%emt 0:14:31]} Ba5+ {[%emt 0:00:13]} 17. Kd1 {[%emt 0:00:22]} Ng6 {[%emt 0:00:28]} 18. h4 {[%emt 0:04:13]} h5 {[%emt 0:00:14]} 19. Be2 {[%emt 0:00:48]} Bg4 {[%emt 0:00:14]} 20. Ng1 {[%emt 0:06:56]} Kg7 {[%emt 0:00:52]} 21. Bxg4 {[%emt 0:01:49]} hxg4 {[%emt 0:00:01]} 22. Ne2 {[%emt 0:00:04]} f5 {[%emt 0:00:51]} 23. Ng3 {[%emt 0:05:33]} Ne7 {[%emt 0:00:03]} 24. Ke2 {[%emt 0:03:34]} Rh8 {[%emt 0:00:54]} 25. f3 {[%emt 0:03:18]} gxf3+ {[%emt 0:00:10]} 26. gxf3 {[%emt 0:00:28]} Rag8 {[%emt 0:00:08]} 27. Rh2 {[%emt 0:04:58]} Kf8 {[%emt 0:00:11]} 28. Nh1 {[%emt 0:01:21]} Rh7 {[%emt 0:00:23]} 29. Nf2 {[%emt 0:00:14]} Rh5 {[%emt 0:02:17]} 30. Rch1 {[%emt 0:02:08]} Bd8 {[%emt 0:01:30]} 31. Nd3 {[%emt 0:03:19]} b6 {[%emt 0:00:21]} 32. f4 {[%emt 0:00:48]} e4 {[%emt 0:01:22]} 33. Ne1 {[%emt 0:03:29]} Rg6 {[%emt 0:00:36]} 34. Rg2 {[%emt 0:05:38]} Ng8 {[%emt 0:00:39]} 35. Rhg1 {[%emt 0:01:22]} Bxh4 {[%emt 0:06:24]} 36. Rxg6 {[%emt 0:01:33]} fxg6 {[%emt 0:00:07]} 37. Rxg6 {[%emt 0:00:17]} Be7 {[%emt 0:00:53]} 38. Bc3 {[%emt 0:02:34]} Rh2+ {[%emt 0:00:28]} 39. Rg2 {[%emt 0:00:46]} Rh1 {[%emt 0:00:21]} 40. Rg6 {[%emt 0:00:43]} Rh7 {[%emt 0:00:08]} 41. Rg2 {[%emt 0:03:45]} Kf7 {[%emt 0:00:28]} 42. Kf1 {[%emt 0:01:14]} Rh3 {[%emt 0:02:27]} 43. Rg7+ {[%emt 0:00:45]} Kf8 {[%emt 0:00:08]} 44. Ke2 {[%emt 0:00:15]} Rh1 {[%emt 0:02:48]} 45. Rg6 {[%emt 0:00:24]} Rh2+ {[%emt 0:01:34]} 46. Rg2 {[%emt 0:00:01]} Rh7 {[%emt 0:00:10]} 47. Kf1 {[%emt 0:00:36]} Nf6 {[%emt 0:00:42]} 48. Bxf6 {[%emt 0:01:06]} Bxf6 {[%emt 0:00:01]} 49. Nc2 {[%emt 0:02:03]} Kf7 {[%emt 0:00:12]} 50. Kg1 {[%emt 0:00:11]} Rh3 {[%emt 0:04:57]} 51. Rh2 {[%emt 0:00:09]} Rf3 {[%emt 0:00:13]} 52. Rh7+ {[%emt 0:01:17]} Bg7 {[%emt 0:00:19]} 53. Kg2 {[%emt 0:00:21]} Kg6 {[%emt 0:00:19]} 54. Rh3 {[%emt 0:01:09]} Rxh3 {[%emt 0:00:10]} 55. Kxh3 {[%emt 0:00:00]} Kh5 {[%emt 0:00:10]} 56. Kg3 {[%emt 0:00:11]} Bf6 {[%emt 0:00:07]} 57. Kh3 {[%emt 0:00:15]} Bh4 {[%emt 0:00:35]} 58. Na1 {[%emt 0:00:19]} Bf6 {[%emt 0:07:05]} 59. Nc2 {[%emt 0:00:07]} 1/2-1/2

[Event "1000GM NY Winter IM-C 2024"]
[Site "New York"]
[Date "2024.01.15"]
[Round "8.3"]
[White "Chabris, Christopher"]
[Black "Kovalchuk, Igor"]
[Result "1/2-1/2"]
[ECO "B01"]
[WhiteElo "2078"]
[BlackElo "2030"]
[Annotator "NA"]
[PlyCount "52"]
[EventDate "2024.01.10"]
[EventType "swiss"]
[EventCountry "USA"]
[SourceTitle "playchess.com"]
[Source "ChessBase"]
[SourceQuality "1"]
[TimeControl "5400+30"]

1. e4 {[%emt 0:00:02]} d5 {[%emt 0:00:13]} 2. exd5 {[%emt 0:00:15]} Nf6 {[%emt 0:00:07]} 3. Nf3 {[%emt 0:01:12]} Nxd5 {[%emt 0:00:11]} 4. d4 {[%emt 0:00:43]} g6 {[%emt 0:00:10]} 5. Bc4 {[%emt 0:04:07]} Bg7 {[%emt 0:02:19]} 6. O-O {[%emt 0:00:40]} O-O {[%emt 0:00:15]} 7. Re1 {[%emt 0:02:55]} Nb6 {[%emt 0:05:52]} 8. Bb3 {[%emt 0:01:33]} c5 {[%emt 0:00:17]} 9. c3 {[%emt 0:15:48]} cxd4 {[%emt 0:00:41]} 10. Nxd4 {[%emt 0:00:26]} e5 {[%emt 0:02:56]} 11. Nb5 {[%emt 0:01:38]} Qxd1 {[%emt 0:00:29]} 12. Rxd1 {[%emt 0:13:04]} Nc6 {[%emt 0:05:52]} 13. Be3 {[%emt 0:02:35]} Na5 {[%emt 0:00:32]} 14. Nc7 {[%emt 0:02:04]} Bg4 {[%emt 0:04:26]} 15. f3 {[%emt 0:06:33]} Rac8 {[%emt 0:01:52]} 16. Bxb6 {[%emt 0:05:39]} axb6 {[%emt 0:15:41]} 17. Nd5 {[%emt 0:01:29]} Ra8 {[%emt 0:00:58]} 18. Nd2 {[%emt 0:14:19]} Nxb3 {[%emt 0:02:30]} 19. Nxb3 {[%emt 0:03:03]} Be6 {[%emt 0:00:18]} 20. Nxb6 {[%emt 0:04:10]} Rxa2 {[%emt 0:01:37]} 21. Rxa2 {[%emt 0:00:21]} Bxb3 {[%emt 0:00:08]} 22. Raa1 {[%emt 0:00:19]} Bxd1 {[%emt 0:01:18]} 23. Rxd1 {[%emt 0:00:06]} f5 {[%emt 0:01:08]} 24. Rd7 {[%emt 0:01:48]} Rf7 {[%emt 0:01:06]} 25. Rd8+ {[%emt 0:02:14]} Rf8 {[%emt 0:00:14]} 26. Rd7 {[%emt 0:01:00]} Rf7 {[%emt 0:52:20]} 1/2-1/2

[Event "1000GM NY Winter IM-C 2024"]
[Site "New York"]
[Date "2024.01.15"]
[Round "8.4"]
[White "Ho, Carter"]
[Black "Mede, Istvan"]
[Result "1/2-1/2"]
[ECO "B12"]
[WhiteElo "2180"]
[BlackElo "2187"]
[Annotator "NA"]
[PlyCount "83"]
[EventDate "2024.01.10"]
[EventType "swiss"]
[EventCountry "USA"]
[SourceTitle "playchess.com"]
[Source "ChessBase"]
[SourceQuality "1"]
[TimeControl "5400+30"]

1. e4 {[%emt 0:02:05]} c6 {[%emt 0:02:54]} 2. d4 {[%emt 0:00:15]} d5 {[%emt 0:00:04]} 3. e5 {[%emt 0:00:18]} c5 {[%emt 0:00:09]} 4. Nf3 {[%emt 0:00:43]} cxd4 {[%emt 0:00:11]} 5. Nxd4 {[%emt 0:00:09]} e6 {[%emt 0:01:08]} 6. Bd3 {[%emt 0:00:58]} Nc6 {[%emt 0:00:43]} 7. Nxc6 {[%emt 0:00:24]} bxc6 {[%emt 0:00:03]} 8. Be3 {[%emt 0:02:05]} Ba6 {[%emt 0:14:59]} 9. O-O {[%emt 0:07:09]} Bxd3 {[%emt 0:00:50]} 10. Qxd3 {[%emt 0:05:09]} Ne7 {[%emt 0:01:39]} 11. Nd2 {[%emt 0:10:45]} Nf5 {[%emt 0:01:26]} 12. c4 {[%emt 0:03:20]} Nxe3 {[%emt 0:05:21]} 13. Qxe3 {[%emt 0:01:03]} Be7 {[%emt 0:01:09]} 14. Rac1 {[%emt 0:02:27]} O-O {[%emt 0:00:46]} 15. Nb3 {[%emt 0:02:15]} Qd7 {[%emt 0:02:32]} 16. cxd5 {[%emt 0:08:59]} cxd5 {[%emt 0:00:15]} 17. Rc2 {[%emt 0:01:18]} h6 {[%emt 0:04:04]} 18. Nd4 {[%emt 0:03:29]} Bd8 {[%emt 0:00:22]} 19. Nc6 {[%emt 0:01:58]} Bb6 {[%emt 0:03:00]} 20. Qd3 {[%emt 0:02:18]} Rac8 {[%emt 0:02:56]} 21. Rfc1 {[%emt 0:00:07]} Rc7 {[%emt 0:07:15]} 22. b4 {[%emt 0:00:31]} f6 {[%emt 0:01:12]} 23. a4 {[%emt 0:17:03]} fxe5 {[%emt 0:02:21]} 24. a5 {[%emt 0:00:56]} Bxf2+ {[%emt 0:01:16]} 25. Kh1 {[%emt 0:00:06]} e4 {[%emt 0:03:35]} 26. Qh3 {[%emt 0:00:44]} Qd6 {[%emt 0:01:42]} 27. b5 {[%emt 0:01:49]} d4 {[%emt 0:03:39]} 28. b6 {[%emt 0:01:03]} axb6 {[%emt 0:00:15]} 29. axb6 {[%emt 0:00:07]} Rb7 {[%emt 0:00:15]} 30. Na5 {[%emt 0:00:07]} Rbb8 {[%emt 0:14:07]} 31. Rc6 {[%emt 0:10:05]} Qf4 {[%emt 0:01:57]} 32. Qxe6+ {[%emt 0:00:44]} Kh7 {[%emt 0:00:03]} 33. Qg6+ {[%emt 0:01:30]} Kh8 {[%emt 0:00:04]} 34. Rc7 {[%emt 0:00:22]} Qf6 {[%emt 0:05:10]} 35. Qxf6 {[%emt 0:03:14]} gxf6 {[%emt 0:00:15]} 36. b7 {[%emt 0:01:36]} d3 {[%emt 0:00:06]} 37. Rd7 {[%emt 0:01:08]} d2 {[%emt 0:05:37]} 38. Rcc7 {[%emt 0:01:03]} d1=Q+ {[%emt 0:13:07]} 39. Rxd1 {[%emt 0:00:09]} Bb6 {[%emt 0:00:02]} 40. Re7 {[%emt 0:00:17]} Bxa5 {[%emt 0:00:08]} 41. Rdd7 {[%emt 0:00:08]} Rfd8 {[%emt 0:00:46]} 42. Rh7+ {[%emt 0:00:05]} 1/2-1/2

[Event "1000GM NY Winter IM-C 2024"]
[Site "New York"]
[Date "2024.01.15"]
[Round "8.5"]
[White "Tanenbaum, Zachary"]
[Black "Bonin, Jay"]
[Result "1-0"]
[ECO "B15"]
[WhiteElo "2272"]
[BlackElo "2166"]
[Annotator "NA RC"]
[PlyCount "189"]
[EventDate "2024.01.10"]
[EventType "swiss"]
[EventCountry "USA"]
[SourceTitle "playchess.com"]
[Source "ChessBase"]
[SourceQuality "1"]
[TimeControl "5400+30"]

1. e4 {[%emt 0:21:17]} c6 {[%emt 0:00:07]} 2. d4 {[%emt 0:00:27]} a6 {[%emt 0:00:04]} 3. Nc3 {[%emt 0:06:12]} d5 {[%emt 0:00:19]} 4. e5 {[%emt 0:00:31]} c5 {[%emt 0:01:30]} 5. dxc5 {[%emt 0:00:56]} e6 {[%emt 0:00:07]} 6. Qg4 {[%emt 0:02:35]} Nd7 {[%emt 0:01:53]} 7. Nf3 {[%emt 0:00:38]} Nxc5 {[%emt 0:00:40]} 8. Bg5 {[%emt 0:07:19]} Qa5 {[%emt 0:05:53]} 9. b4 {[%emt 0:06:26]} Qa3 {[%emt 0:00:33]} 10. Bd2 {[%emt 0:00:55]} Nh6 {[%emt 0:01:42]} 11. Qf4 {[%emt 0:03:10]} Na4 {[%emt 0:03:56]} 12. Nxa4 {[%emt 0:07:59]} Qxa4 {[%emt 0:00:06]} 13. Bd3 {[%emt 0:00:21]} Bd7 {[%emt 0:00:47]} 14. O-O {[%emt 0:07:45]} Be7 {[%emt 0:07:03]} 15. Qg3 {[%emt 0:01:47]} Kf8 {[%emt 0:01:17]} 16. a3 {[%emt 0:06:22]} Bb5 {[%emt 0:04:29]} 17. Bxh6 {[%emt 0:02:09]} gxh6 {[%emt 0:00:13]} 18. Qh3 {[%emt 0:00:55]} Kg7 {[%emt 0:00:35]} 19. Qg4+ {[%emt 0:00:12]} Kf8 {[%emt 0:00:06]} 20. Qh5 {[%emt 0:00:10]} Kg7 {[%emt 0:00:22]} 21. Rfd1 {[%emt 0:05:38]} Bxd3 {[%emt 0:13:04]} 22. Rxd3 {[%emt 0:00:41]} Qxc2 {[%emt 0:00:16]} 23. Rad1 {[%emt 0:00:24]} Qe2 {[%emt 0:00:55]} 24. Rd4 {[%emt 0:09:43]} Rhc8 {[%emt 0:01:05]} 25. Re1 {[%emt 0:00:42]} Qc2 {[%emt 0:01:14]} 26. Rg4+ {[%emt 0:00:23]} Kf8 {[%emt 0:00:38]} 27. Qxh6+ {[%emt 0:03:17]} Ke8 {[%emt 0:00:03]} 28. Rg7 {[%emt 0:00:43]} Bf8 {[%emt 0:01:56]} 29. Rg8 {[%emt 0:00:13]} Kd7 {[%emt 0:00:06]} 30. Qh5 {[%emt 0:00:59]} Be7 {[%emt 0:03:22]} 31. Rg7 {[%emt 0:00:26]} Rf8 {[%emt 0:01:05]} 32. Nd4 {[%emt 0:00:52]} Qc3 {[%emt 0:01:53]} 33. Rd1 {[%emt 0:00:11]} Rac8 {[%emt 0:00:40]} 34. g3 {[%emt 0:02:24]} Rc4 {[%emt 0:00:43]} 35. Ne2 {[%emt 0:00:41]} Qxa3 {[%emt 0:03:09]} 36. Rxf7 {[%emt 0:00:45]} Rxf7 {[%emt 0:00:31]} 37. Qxf7 {[%emt 0:00:02]} Qb3 {[%emt 0:01:39]} 38. Rf1 {[%emt 0:00:19]} Qxb4 {[%emt 0:03:39]} 39. Nf4 {[%emt 0:00:09]} Rxf4 {[%emt 0:00:18]} 40. gxf4 {[%emt 0:02:26]} Qe4 {[%emt 0:00:09]} 41. Rc1 {[%emt 0:00:13]} Qg6+ {[%emt 0:00:29]} 42. Qxg6 {[%emt 0:00:02]} hxg6 {[%emt 0:00:04]} 43. Kf1 {[%emt 0:00:13]} a5 {[%emt 0:04:35]} 44. Ke2 {[%emt 0:00:14]} b5 {[%emt 0:00:39]} 45. Rg1 {[%emt 0:00:25]} a4 {[%emt 0:02:15]} 46. Kd3 {[%emt 0:00:07]} b4 {[%emt 0:01:32]} 47. Rxg6 {[%emt 0:00:24]} Bc5 {[%emt 0:02:09]} 48. Rg1 {[%emt 0:01:17]} b3 {[%emt 0:04:20]} 49. Kc3 {[%emt 0:01:51]} Kc6 {[%emt 0:01:15]} 50. f5 {[%emt 0:00:58]} exf5 {[%emt 0:00:30]} 51. e6 {[%emt 0:00:24]} Be7 {[%emt 0:03:56]} 52. Rg8 {[%emt 0:00:12]} d4+ {[%emt 0:02:45]} 53. Kc4 {[%emt 0:00:59]} d3 {[%emt 0:04:21]} 54. Rg1 {[%emt 0:00:16]} d2 {[%emt 0:05:30]} 55. Rd1 {[%emt 0:00:25]} b2 {[%emt 0:00:55]} 56. Kc3 {[%emt 0:00:10]} a3 {[%emt 0:00:56]} 57. Kb3 {[%emt 0:00:19]} Bb4 {[%emt 0:02:23]} 58. h4 {[%emt 0:01:03]} Kd6 {[%emt 0:00:10]} 59. h5 {[%emt 0:00:10]} Kxe6 {[%emt 0:00:03]} 60. h6 {[%emt 0:00:29]} Kf7 {[%emt 0:01:04]} 61. Rg1 {[%emt 0:00:22]} d1=Q+ {[%emt 0:02:43]} 62. Rxd1 {[%emt 0:00:02]} Kg6 {[%emt 0:00:03]} 63. Rh1 {[%emt 0:00:08]} Kh7 {[%emt 0:00:03]} 64. Ka2 {[%emt 0:00:09]} Bc5 {[%emt 0:00:24]} 65. f3 {[%emt 0:00:16]} Bf8 {[%emt 0:01:55]} 66. Rh5 {[%emt 0:00:54]} Bxh6 {[%emt 0:10:24]} 67. Rh1 {[%emt 0:02:05]} Kg6 {[%emt 0:00:00]} 68. Rg1+ {[%emt 0:00:41]} Kf6 {[%emt 0:00:00]} 69. Kxa3 {[%emt 0:00:10]} Bc1 {[%emt 0:00:00]} 70. Ka2 {[%emt 0:00:05]} Ke5 {[%emt 0:00:00]} 71. Rh1 {[%emt 0:00:41]} Kd4 {[%emt 0:00:00]} 72. Re1 {[%emt 0:00:18]} f4 {[%emt 0:00:00]} 73. Kb1 {[%emt 0:00:25]} Kc3 {[%emt 0:00:00]} 74. Re8 {[%emt 0:00:39]} Kb3 {[%emt 0:00:00]} 75. Rc8 {[%emt 0:00:15]} Bd2 {[%emt 0:00:00]} 76. Rb8+ {[%emt 0:00:53]} Bb4 {[%emt 0:00:00]} 77. Rb7 {[%emt 0:00:43]} Kc3 {[%emt 0:00:00]} 78. Rb6 {[%emt 0:00:53]} Kb3 {[%emt 0:00:00]} 79. Rb8 {[%emt 0:00:21]} Kc3 {[%emt 0:00:00]} 80. Rb7 {[%emt 0:00:10]} Kb3 {[%emt 0:00:00]} 81. Rb6 {[%emt 0:00:06]} Kc4 {[%emt 0:00:16]} 82. Kxb2 {[%emt 0:00:10]} Bc5 {[%emt 0:00:56]} 83. Rb3 {[%emt 0:00:13]} Be3 {[%emt 0:00:35]} 84. Kc2 {[%emt 0:00:12]} Kd4 {[%emt 0:00:16]} 85. Rb4+ {[%emt 0:00:24]} Ke5 {[%emt 0:00:07]} 86. Kd3 {[%emt 0:00:12]} Kf5 {[%emt 0:00:36]} 87. Rb5+ {[%emt 0:00:05]} Ke6 {[%emt 0:00:14]} 88. Ke4 {[%emt 0:00:06]} Bc1 {[%emt 0:00:18]} 89. Rb6+ {[%emt 0:00:14]} Ke7 {[%emt 0:00:10]} 90. Kf5 {[%emt 0:00:16]} Kf7 {[%emt 0:00:09]} 91. Rb7+ {[%emt 0:00:11]} Ke8 {[%emt 0:00:17]} 92. Ke6 {[%emt 0:00:54]} Kf8 {[%emt 0:00:23]} 93. Kf6 {[%emt 0:00:25]} Ke8 {[%emt 0:00:20]} 94. Re7+ {[%emt 0:00:19]} Kd8 {[%emt 0:00:27]} 95. Re4 {[%emt 0:04:48]} 1-0

[Event "1000GM NY Winter IM-C 2024"]
[Site "New York"]
[Date "2024.01.15"]
[Round "8.6"]
[White "Yudasin, Leonid"]
[Black "Pagan, Jonathan"]
[Result "1/2-1/2"]
[ECO "C54"]
[WhiteElo "2353"]
[BlackElo "2018"]
[Annotator "ChessBase"]
[PlyCount "30"]
[EventDate "2024.01.10"]
[EventType "swiss"]
[EventCountry "USA"]
[SourceTitle "playchess.com"]
[Source "ChessBase"]
[SourceQuality "1"]
[TimeControl "5400+30"]

1. e4 {[%emt 0:00:02]} e5 {[%emt 0:00:20]} 2. Nf3 {[%emt 0:00:17]} Nc6 {[%emt 0:00:12]} 3. Bc4 {[%emt 0:01:35]} Bc5 {[%emt 0:00:07]} 4. c3 {[%emt 0:00:48]} Nf6 {[%emt 0:00:06]} 5. d3 {[%emt 0:00:04]} d6 {[%emt 0:00:06]} 6. O-O {[%emt 0:03:11]} a5 {[%emt 0:00:09]} 7. a4 {[%emt 0:07:23]} O-O {[%emt 0:05:46]} 8. Na3 {[%emt 0:07:36]} h6 {[%emt 0:01:53]} 9. Nc2 {[%emt 0:05:47]} Ba7 {[%emt 0:02:59]} 10. Be3 {[%emt 0:01:56]} Be6 {[%emt 0:03:03]} 11. Bxa7 {[%emt 0:03:42]} Rxa7 {[%emt 0:00:24]} 12. Bxe6 {[%emt 0:00:17]} Nh5 {[%emt 1:21:25]} 13. Re1 fxe6 {[%emt 0:00:30]} 14. g3 Ne7 15. d4 {[%emt 1:05:22]} Ra8 1/2-1/2

[Event "1000GM NY Winter IM-C 2024"]
[Site "New York"]
[Date "2024.01.15"]
[Round "8.7"]
[White "Hajnal, Zoltan"]
[Black "Gaw, Chloe"]
[Result "1-0"]
[ECO "B67"]
[WhiteElo "2383"]
[BlackElo "1928"]
[Annotator "ChessBase"]
[PlyCount "73"]
[EventDate "2024.01.10"]
[EventType "swiss"]
[EventCountry "USA"]
[SourceTitle "playchess.com"]
[Source "ChessBase"]
[SourceQuality "1"]
[TimeControl "5400+30"]

1. e4 {[%emt 0:07:23]} c5 {[%emt 0:00:02]} 2. Nf3 {[%emt 0:00:03]} d6 {[%emt 0:00:08]} 3. d4 {[%emt 0:00:05]} cxd4 {[%emt 0:00:04]} 4. Nxd4 {[%emt 0:00:12]} Nf6 {[%emt 0:00:06]} 5. Nc3 {[%emt 0:00:03]} Nc6 {[%emt 0:00:06]} 6. Bg5 {[%emt 0:00:03]} e6 {[%emt 0:00:05]} 7. Qd2 {[%emt 0:00:04]} a6 {[%emt 0:00:05]} 8. O-O-O {[%emt 0:00:19]} Bd7 {[%emt 0:00:06]} 9. f3 {[%emt 0:00:04]} Nxd4 {[%emt 0:00:13]} 10. Qxd4 {[%emt 0:00:03]} Be7 {[%emt 0:00:25]} 11. h4 {[%emt 0:00:18]} h5 {[%emt 0:02:24]} 12. Be2 {[%emt 0:06:41]} Qc7 {[%emt 0:03:59]} 13. f4 {[%emt 1:21:42]} Qc5 {[%emt 0:12:08]} 14. Qd3 {[%emt 0:00:00]} Bc6 {[%emt 0:10:21]} 15. Rhe1 {[%emt 0:00:00]} b5 {[%emt 0:08:49]} 16. a3 {[%emt 0:00:00]} b4 {[%emt 0:06:20]} 17. axb4 {[%emt 0:00:00]} Qxb4 {[%emt 0:00:07]} 18. Bf3 {[%emt 0:00:00]} Rb8 {[%emt 0:12:53]} 19. e5 {[%emt 0:00:00]} Bxf3 {[%emt 0:17:29]} 20. exf6 {[%emt 0:00:00]} Bxd1 {[%emt 0:17:07]} 21. fxg7 {[%emt 0:00:00]} Rg8 {[%emt 0:00:41]} 22. Bxe7 {[%emt 0:00:00]} Qxb2+ {[%emt 0:01:00]} 23. Kxd1 {[%emt 0:00:00]} Kxe7 {[%emt 0:00:27]} 24. Qd4 {[%emt 0:00:00]} Kd7 {[%emt 0:01:37]} 25. Qf6 {[%emt 0:00:00]} Kc6 {[%emt 0:02:04]} 26. Kd2 {[%emt 0:00:00]} Rb4 {[%emt 0:01:54]} 27. Rb1 {[%emt 0:00:00]} Qa3 {[%emt 0:01:40]} 28. Qxf7 {[%emt 0:00:00]} Rxb1 {[%emt 0:00:32]} 29. Qxg8 {[%emt 0:00:00]} Qc1+ {[%emt 0:00:11]} 30. Kd3 {[%emt 0:00:00]} Qf1+ {[%emt 0:00:34]} 31. Ne2 {[%emt 0:00:00]} Rd1+ {[%emt 0:00:51]} 32. Ke3 {[%emt 0:00:00]} Re1 {[%emt 0:00:39]} 33. Qa8+ {[%emt 0:00:00]} Kb6 {[%emt 0:01:11]} 34. Qf3 {[%emt 0:00:00]} Rxe2+ {[%emt 0:00:38]} 35. Qxe2 {[%emt 0:00:00]} Qc1+ {[%emt 0:00:15]} 36. Kf3 {[%emt 0:00:00]} Qa3+ {[%emt 0:00:27]} 37. Qe3+ {[%emt 0:00:00]} 1-0

[Event "1000GM NY Winter IM-C 2024"]
[Site "New York"]
[Date "2024.01.15"]
[Round "8.8"]
[White "Pressman, Leif"]
[Black "Mou, Iris"]
[Result "0-1"]
[ECO "B12"]
[WhiteElo "2258"]
[BlackElo "2128"]
[Annotator "NA"]
[PlyCount "84"]
[EventDate "2024.01.10"]
[EventType "swiss"]
[EventCountry "USA"]
[SourceTitle "playchess.com"]
[Source "ChessBase"]
[SourceQuality "1"]
[TimeControl "5400+30"]

1. e4 {[%emt 0:25:41]} c6 {[%emt 0:00:08]} 2. d4 {[%emt 0:00:12]} d5 {[%emt 0:00:08]} 3. e5 {[%emt 0:00:06]} Bf5 {[%emt 0:00:12]} 4. Nf3 {[%emt 0:00:18]} e6 {[%emt 0:00:58]} 5. Be2 {[%emt 0:01:18]} c5 {[%emt 0:00:14]} 6. Be3 {[%emt 0:00:22]} Qb6 {[%emt 0:00:17]} 7. Nc3 {[%emt 0:00:06]} c4 {[%emt 0:00:33]} 8. Rb1 {[%emt 0:01:52]} Bb4 {[%emt 0:01:38]} 9. O-O {[%emt 0:03:47]} h6 {[%emt 0:01:37]} 10. a3 {[%emt 0:04:04]} Bxc3 {[%emt 0:00:38]} 11. bxc3 {[%emt 0:00:02]} Qc6 {[%emt 0:02:56]} 12. Nh4 {[%emt 0:03:55]} Bh7 {[%emt 0:01:19]} 13. f4 {[%emt 0:00:30]} Ne7 {[%emt 0:02:55]} 14. g4 {[%emt 0:01:59]} Nd7 {[%emt 0:13:07]} 15. f5 {[%emt 0:03:08]} O-O-O {[%emt 0:02:04]} 16. f6 {[%emt 0:04:41]} gxf6 {[%emt 0:02:53]} 17. exf6 {[%emt 0:01:03]} Ng8 {[%emt 0:08:08]} 18. g5 {[%emt 0:04:39]} hxg5 {[%emt 0:07:42]} 19. Bxg5 {[%emt 0:00:13]} Ngxf6 {[%emt 0:03:19]} 20. Bxf6 {[%emt 0:04:40]} Rdg8+ {[%emt 0:00:46]} 21. Bg4 {[%emt 0:06:48]} Bxc2 {[%emt 0:01:53]} 22. Qxc2 {[%emt 0:03:39]} Rxg4+ {[%emt 0:00:44]} 23. Kh1 {[%emt 0:08:50]} Nxf6 {[%emt 0:01:18]} 24. Rxf6 {[%emt 0:00:01]} Rgxh4 {[%emt 0:00:16]} 25. Rf2 {[%emt 0:00:17]} Qd6 {[%emt 0:05:08]} 26. a4 {[%emt 0:03:23]} Qg3 {[%emt 0:04:44]} 27. Rbf1 {[%emt 0:02:23]} Rh3 {[%emt 0:04:28]} 28. Rc1 {[%emt 0:04:32]} Qe3 {[%emt 0:01:49]} 29. Rg2 {[%emt 0:03:13]} Qf3 {[%emt 0:05:35]} 30. Kg1 {[%emt 0:00:13]} Rxh2 {[%emt 0:00:44]} 31. Rxh2 {[%emt 0:00:18]} Rg8+ {[%emt 0:00:26]} 32. Rg2 {[%emt 0:00:01]} Rxg2+ {[%emt 0:00:14]} 33. Qxg2 {[%emt 0:00:02]} Qe3+ {[%emt 0:00:07]} 34. Kh2 {[%emt 0:00:41]} Qh6+ {[%emt 0:00:08]} 35. Qh3 {[%emt 0:00:54]} Qxc1 {[%emt 0:00:08]} 36. Qh8+ {[%emt 0:00:11]} Kc7 {[%emt 0:02:46]} 37. Qf8 {[%emt 0:02:49]} Qc2+ {[%emt 0:01:45]} 38. Kg1 {[%emt 0:00:36]} Qxa4 {[%emt 0:00:51]} 39. Qxf7+ {[%emt 0:00:56]} Qd7 {[%emt 0:00:09]} 40. Qf8 {[%emt 0:00:08]} b6 {[%emt 0:01:18]} 41. Qa8 {[%emt 0:00:44]} a5 {[%emt 0:01:03]} 42. Kf2 {[%emt 0:00:33]} Qc8 {[%emt 0:00:15]} 0-1